[Event "Titled Tuesday Blitz May 24 Late 2022"]
[White "Arnold, Ken"]
[Black "Pesotskiy, Mikhail"]
[WhiteFideId "2056836"]
[BlackFideId "34164453"]
[WhiteElo "2299"]
[BlackElo "2010"]
[Result "0-1"]
[Round "02"]
[TimeControl "180+1"]
[Date "2022.05.25"]
[WhiteClock "0:00:19"]
[BlackClock "0:00:47"]

1. d4 {[%clk 0:03:00]}  Nf6 {[%clk 0:02:57]} 2. c4 {[%clk 0:03:01]}  e5 {[%clk 0:02:56]} 3. dxe5 {[%clk 0:03:00]}  Ng4 {[%clk 0:02:57]} 4. Nf3 {[%clk 0:03:00]}  Bc5 {[%clk 0:02:57]} 5. e3 {[%clk 0:03:00]}  Nc6 {[%clk 0:02:57]} 6. Nc3 {[%clk 0:02:59]}  Ngxe5 {[%clk 0:02:57]} 7. Be2 {[%clk 0:02:58]}  O-O {[%clk 0:02:57]} 8. a3 {[%clk 0:02:56]}  a5 {[%clk 0:02:58]} 9. O-O {[%clk 0:02:55]}  Nxf3+ {[%clk 0:02:57]} 10. Bxf3 {[%clk 0:02:55]}  Ne5 {[%clk 0:02:58]} 11. b3 {[%clk 0:02:50]}  Ra6 {[%clk 0:02:57]} 12. Bb2 {[%clk 0:02:44]}  Rg6 {[%clk 0:02:51]} 13. Nd5 {[%clk 0:02:39]}  Nxf3+ {[%clk 0:02:51]} 14. Qxf3 {[%clk 0:02:38]}  d6 {[%clk 0:02:50]} 15. b4 {[%clk 0:02:32]}  Ba7 {[%clk 0:02:48]} 16. Nf4 {[%clk 0:02:19]}  Rh6 {[%clk 0:02:44]} 17. Qg3 {[%clk 0:02:13]}  f6 {[%clk 0:02:42]} 18. h3 {[%clk 0:01:56]}  Bf5 {[%clk 0:02:29]} 19. Rfd1 {[%clk 0:01:51]}  Qe7 {[%clk 0:02:22]} 20. Rd5 {[%clk 0:01:45]}  Be6 {[%clk 0:02:13]} 21. Rxa5 {[%clk 0:01:29]}  Bb6 {[%clk 0:02:11]} 22. Nd5 {[%clk 0:01:25]}  Bxd5 {[%clk 0:02:04]} 23. Rxd5 {[%clk 0:01:24]}  Qe4 {[%clk 0:02:02]} 24. Rc1 {[%clk 0:00:55]}  Rg6 {[%clk 0:01:54]} 25. Qh2 {[%clk 0:00:47]}  f5 {[%clk 0:01:21]} 26. Bd4 {[%clk 0:00:43]}  f4 {[%clk 0:01:15]} 27. Bxb6 {[%clk 0:00:40]}  f3 {[%clk 0:01:14]} 28. Rd4 {[%clk 0:00:30]}  Qc6 {[%clk 0:01:01]} 29. Rg4 {[%clk 0:00:26]}  Rxg4 {[%clk 0:00:55]} 30. hxg4 {[%clk 0:00:27]}  Qxb6 {[%clk 0:00:55]} 31. gxf3 {[%clk 0:00:22]}  Qa6 {[%clk 0:00:53]} 32. Rc3 {[%clk 0:00:21]}  Qa4 {[%clk 0:00:51]} 33. Kg2 {[%clk 0:00:20]}  Qd1 {[%clk 0:00:50]} 34. Qg3 {[%clk 0:00:20]}  Qd2 {[%clk 0:00:47]} 35. Rb3 {[%clk 0:00:19]}  Qc2 {[%clk 0:00:47]} 0-1


[Site "https://www.chess.com"]

[Event "Titled Tuesday Blitz May 24 Late 2022"]
[White "Bagrationi, Alexander"]
[Black "Maghsoodloo, Parham"]
[WhiteFideId "14104954"]
[BlackFideId "12539929"]
[WhiteElo "2502"]
[BlackElo "2630"]
[Result "0-1"]
[Round "02"]
[TimeControl "180+1"]
[Date "2022.05.24"]
[WhiteClock "0:01:17"]
[BlackClock "0:01:43"]

1. d4 {[%clk 0:02:58]}  Nf6 {[%clk 0:02:59]} 2. c4 {[%clk 0:02:58]}  e6 {[%clk 0:03:00]} 3. Nc3 {[%clk 0:02:53]}  Bb4 {[%clk 0:02:52]} 4. e3 {[%clk 0:02:50]}  O-O {[%clk 0:02:51]} 5. Ne2 {[%clk 0:02:50]}  d5 {[%clk 0:02:48]} 6. a3 {[%clk 0:02:49]}  Be7 {[%clk 0:02:46]} 7. cxd5 {[%clk 0:02:46]}  Nxd5 {[%clk 0:02:45]} 8. Nxd5 {[%clk 0:02:45]}  exd5 {[%clk 0:02:43]} 9. Nf4 {[%clk 0:02:43]}  c6 {[%clk 0:02:43]} 10. Bd3 {[%clk 0:02:43]}  Nd7 {[%clk 0:02:41]} 11. O-O {[%clk 0:02:43]}  Nf6 {[%clk 0:02:35]} 12. b4 {[%clk 0:02:39]}  a6 {[%clk 0:02:34]} 13. Bd2 {[%clk 0:02:38]}  Bd6 {[%clk 0:02:32]} 14. Qb1 {[%clk 0:02:35]}  Re8 {[%clk 0:02:31]} 15. a4 {[%clk 0:02:31]}  Ne4 {[%clk 0:02:24]} 16. Bc1 {[%clk 0:02:19]}  Qh4 {[%clk 0:02:19]} 17. g3 {[%clk 0:02:17]}  Qh6 {[%clk 0:02:17]} 18. f3 {[%clk 0:02:12]}  Ng5 {[%clk 0:02:13]} 19. e4 {[%clk 0:02:06]}  Bxf4 {[%clk 0:02:04]} 20. gxf4 {[%clk 0:01:59]}  Nh3+ {[%clk 0:02:04]} 21. Kh1 {[%clk 0:01:59]}  Nxf4 {[%clk 0:02:03]} 22. exd5 {[%clk 0:01:56]}  Qh4 {[%clk 0:01:43]} 23. Bxf4 {[%clk 0:01:23]}  Qxf4 {[%clk 0:01:43]} 24. Bxh7+ {[%clk 0:01:18]}  Kh8 {[%clk 0:01:43]} 25. dxc6 {[%clk 0:01:17]}  Re2 {[%clk 0:01:43]} 0-1


[Site "https://www.chess.com"]

[Event "Titled Tuesday Blitz May 24 Late 2022"]
[White "Bernal Moro, Luis Javier"]
[Black "Sjugirov, Sanan"]
[WhiteFideId "2200236"]
[BlackFideId "4189302"]
[WhiteElo "2373"]
[BlackElo "2602"]
[Result "0-1"]
[Round "02"]
[TimeControl "180+1"]
[Date "2022.05.25"]
[WhiteClock "0:00:08"]
[BlackClock "0:01:26"]

1. c4 {[%clk 0:02:57]}  c5 {[%clk 0:02:58]} 2. Nf3 {[%clk 0:02:56]}  Nf6 {[%clk 0:02:58]} 3. Nc3 {[%clk 0:02:57]}  e6 {[%clk 0:02:58]} 4. e4 {[%clk 0:02:56]}  Nc6 {[%clk 0:02:56]} 5. d4 {[%clk 0:02:55]}  cxd4 {[%clk 0:02:55]} 6. Nxd4 {[%clk 0:02:56]}  Bb4 {[%clk 0:02:56]} 7. Nxc6 {[%clk 0:02:55]}  bxc6 {[%clk 0:02:57]} 8. Bd3 {[%clk 0:02:55]}  e5 {[%clk 0:02:56]} 9. O-O {[%clk 0:02:54]}  O-O {[%clk 0:02:56]} 10. h3 {[%clk 0:02:43]}  h6 {[%clk 0:02:55]} 11. Na4 {[%clk 0:02:42]}  Re8 {[%clk 0:02:52]} 12. c5 {[%clk 0:02:35]}  d5 {[%clk 0:02:40]} 13. cxd6 {[%clk 0:02:35]}  Bxd6 {[%clk 0:02:39]} 14. Be3 {[%clk 0:02:36]}  Be6 {[%clk 0:02:31]} 15. b3 {[%clk 0:02:33]}  Qe7 {[%clk 0:02:23]} 16. Rc1 {[%clk 0:02:29]}  Rac8 {[%clk 0:02:15]} 17. Qe2 {[%clk 0:02:28]}  Red8 {[%clk 0:02:14]} 18. Nc5 {[%clk 0:01:51]}  Bxc5 {[%clk 0:02:02]} 19. Bxc5 {[%clk 0:01:51]}  Qc7 {[%clk 0:02:02]} 20. Ba6 {[%clk 0:01:47]}  Rb8 {[%clk 0:02:02]} 21. Rfd1 {[%clk 0:01:30]}  Rxd1+ {[%clk 0:02:01]} 22. Rxd1 {[%clk 0:01:30]}  Qa5 {[%clk 0:02:01]} 23. b4 {[%clk 0:00:22]}  Qxa2 {[%clk 0:02:00]} 24. Qxa2 {[%clk 0:00:18]}  Bxa2 {[%clk 0:02:01]} 25. f3 {[%clk 0:00:17]}  Be6 {[%clk 0:02:01]} 26. Rd6 {[%clk 0:00:15]}  Bd7 {[%clk 0:01:29]} 27. g4 {[%clk 0:00:14]}  Be8 {[%clk 0:01:29]} 28. Bxa7 {[%clk 0:00:08]}  Ra8 {[%clk 0:01:26]} 0-1


[Site "https://www.chess.com"]

[Event "Titled Tuesday Blitz May 24 Late 2022"]
[White "Bibasa, Bob"]
[Black "Sailer, Mike"]
[WhiteFideId "10000240"]
[BlackFideId "2012901"]
[WhiteElo "2032"]
[BlackElo "2109"]
[Result "1-0"]
[Round "02"]
[TimeControl "180+1"]
[Date "2022.05.25"]
[WhiteClock "0:00:20"]
[BlackClock "0:00:10"]

1. e4 {[%clk 0:03:00]}  d5 {[%clk 0:02:59]} 2. exd5 {[%clk 0:03:00]}  Qxd5 {[%clk 0:02:59]} 3. Nc3 {[%clk 0:03:00]}  Qd6 {[%clk 0:03:00]} 4. d4 {[%clk 0:03:00]}  Nf6 {[%clk 0:03:00]} 5. Nf3 {[%clk 0:02:59]}  c6 {[%clk 0:03:00]} 6. Be3 {[%clk 0:02:58]}  Bg4 {[%clk 0:02:59]} 7. Be2 {[%clk 0:02:57]}  e6 {[%clk 0:02:59]} 8. O-O {[%clk 0:02:56]}  Be7 {[%clk 0:02:58]} 9. h3 {[%clk 0:02:54]}  Bh5 {[%clk 0:02:58]} 10. Qd2 {[%clk 0:02:51]}  O-O {[%clk 0:02:57]} 11. Rad1 {[%clk 0:02:44]}  Nbd7 {[%clk 0:02:55]} 12. Bf4 {[%clk 0:02:42]}  Qb4 {[%clk 0:02:54]} 13. Ne5 {[%clk 0:02:01]}  Bxe2 {[%clk 0:02:53]} 14. Nxe2 {[%clk 0:02:01]}  Qxd2 {[%clk 0:02:52]} 15. Rxd2 {[%clk 0:01:59]}  Nxe5 {[%clk 0:02:38]} 16. Bxe5 {[%clk 0:01:56]}  Rfd8 {[%clk 0:02:33]} 17. Rfd1 {[%clk 0:01:53]}  Rd7 {[%clk 0:02:33]} 18. c3 {[%clk 0:01:46]}  Rad8 {[%clk 0:02:29]} 19. Ng3 {[%clk 0:01:38]}  Nd5 {[%clk 0:02:04]} 20. Ne4 {[%clk 0:01:34]}  f6 {[%clk 0:01:52]} 21. Bg3 {[%clk 0:01:30]}  f5 {[%clk 0:01:53]} 22. Nc5 {[%clk 0:01:31]}  Bxc5 {[%clk 0:01:46]} 23. dxc5 {[%clk 0:01:31]}  Nf6 {[%clk 0:01:37]} 24. Bd6 {[%clk 0:01:28]}  Ne4 {[%clk 0:01:32]} 25. Rd4 {[%clk 0:01:26]}  Nxd6 {[%clk 0:01:26]} 26. cxd6 {[%clk 0:01:03]}  e5 {[%clk 0:01:26]} 27. R4d2 {[%clk 0:01:03]}  Kf7 {[%clk 0:01:27]} 28. c4 {[%clk 0:01:02]}  c5 {[%clk 0:01:22]} 29. Rd5 {[%clk 0:01:02]}  Ke6 {[%clk 0:01:17]} 30. Re1 {[%clk 0:00:54]}  e4 {[%clk 0:01:05]} 31. f3 {[%clk 0:00:52]}  Rxd6 {[%clk 0:00:45]} 32. fxe4 {[%clk 0:00:52]}  Rxd5 {[%clk 0:00:31]} 33. exd5+ {[%clk 0:00:52]}  Kd7 {[%clk 0:00:23]} 34. Re5 {[%clk 0:00:50]}  Rf8 {[%clk 0:00:21]} 35. Kf2 {[%clk 0:00:50]}  Rf6 {[%clk 0:00:21]} 36. Kf3 {[%clk 0:00:49]}  g5 {[%clk 0:00:22]} 37. g3 {[%clk 0:00:47]}  b6 {[%clk 0:00:21]} 38. h4 {[%clk 0:00:46]}  h6 {[%clk 0:00:20]} 39. b3 {[%clk 0:00:38]}  Kd8 {[%clk 0:00:18]} 40. a3 {[%clk 0:00:28]}  Kd7 {[%clk 0:00:19]} 41. b4 {[%clk 0:00:27]}  Kd8 {[%clk 0:00:19]} 42. bxc5 {[%clk 0:00:26]}  bxc5 {[%clk 0:00:19]} 43. hxg5 {[%clk 0:00:25]}  hxg5 {[%clk 0:00:19]} 44. Re2 {[%clk 0:00:25]}  Ra6 {[%clk 0:00:15]} 45. Re3 {[%clk 0:00:25]}  Kd7 {[%clk 0:00:14]} 46. Rb3 {[%clk 0:00:24]}  Rb6 {[%clk 0:00:12]} 47. Re3 {[%clk 0:00:17]}  Ra6 {[%clk 0:00:07]} 48. g4 {[%clk 0:00:16]}  f4 {[%clk 0:00:06]} 49. Rd3 {[%clk 0:00:16]}  Kd6 {[%clk 0:00:05]} 50. Ke4 {[%clk 0:00:16]}  Ra4 {[%clk 0:00:05]} 51. Kf5 {[%clk 0:00:15]}  Rxc4 {[%clk 0:00:05]} 52. Kxg5 {[%clk 0:00:15]}  Rd4 {[%clk 0:00:06]} 53. Rxd4 {[%clk 0:00:14]}  cxd4 {[%clk 0:00:06]} 54. Kxf4 {[%clk 0:00:15]}  Kxd5 {[%clk 0:00:07]} 55. g5 {[%clk 0:00:15]}  d3 {[%clk 0:00:04]} 56. Ke3 {[%clk 0:00:15]}  Ke5 {[%clk 0:00:04]} 57. Kxd3 {[%clk 0:00:15]}  Kf5 {[%clk 0:00:04]} 58. Kc4 {[%clk 0:00:15]}  Kxg5 {[%clk 0:00:05]} 59. Kb5 {[%clk 0:00:16]}  Kf6 {[%clk 0:00:06]} 60. Ka6 {[%clk 0:00:16]}  Ke7 {[%clk 0:00:07]} 61. Kxa7 {[%clk 0:00:17]}  Kd6 {[%clk 0:00:08]} 62. Kb6 {[%clk 0:00:17]}  Kd7 {[%clk 0:00:07]} 63. Kb7 {[%clk 0:00:18]}  Kd6 {[%clk 0:00:08]} 64. a4 {[%clk 0:00:19]}  Kc5 {[%clk 0:00:09]} 65. a5 {[%clk 0:00:19]}  Kb5 {[%clk 0:00:10]} 66. a6 {[%clk 0:00:20]} 1-0


[Site "https://www.chess.com"]

[Event "Titled Tuesday Blitz May 24 Late 2022"]
[White "Bortnyk, Olexandr"]
[Black "Shuvalova, Polina"]
[WhiteFideId "14120828"]
[BlackFideId "24171760"]
[WhiteElo "2723"]
[BlackElo "2355"]
[Result "1-0"]
[Round "02"]
[TimeControl "180+1"]
[Date "2022.05.24"]
[WhiteClock "0:02:19"]
[BlackClock "0:01:10"]

1. d4 {[%clk 0:02:56]}  Nf6 {[%clk 0:02:58]} 2. Nc3 {[%clk 0:02:54]}  d5 {[%clk 0:02:56]} 3. Bf4 {[%clk 0:02:51]}  e6 {[%clk 0:02:55]} 4. Nb5 {[%clk 0:02:51]}  Na6 {[%clk 0:02:56]} 5. e3 {[%clk 0:02:52]}  Be7 {[%clk 0:02:55]} 6. Nf3 {[%clk 0:02:52]}  O-O {[%clk 0:02:55]} 7. Ne5 {[%clk 0:02:52]}  c6 {[%clk 0:02:51]} 8. Nc3 {[%clk 0:02:52]}  Nb8 {[%clk 0:02:51]} 9. Bd3 {[%clk 0:02:53]}  c5 {[%clk 0:02:50]} 10. Qf3 {[%clk 0:02:53]}  Nc6 {[%clk 0:02:49]} 11. dxc5 {[%clk 0:02:51]}  Bxc5 {[%clk 0:02:40]} 12. O-O-O {[%clk 0:02:46]}  Qe7 {[%clk 0:02:37]} 13. Qh3 {[%clk 0:02:45]}  Nb4 {[%clk 0:02:20]} 14. Be2 {[%clk 0:02:33]}  Bd7 {[%clk 0:02:06]} 15. Bg5 {[%clk 0:02:32]}  h6 {[%clk 0:01:37]} 16. Bxf6 {[%clk 0:02:30]}  gxf6 {[%clk 0:01:35]} 17. Nxd7 {[%clk 0:02:28]}  Qxd7 {[%clk 0:01:35]} 18. a3 {[%clk 0:02:19]}  Nc6 {[%clk 0:01:31]} 19. Nxd5 {[%clk 0:02:19]}  Qd8 {[%clk 0:01:19]} 20. Qxh6 {[%clk 0:02:19]}  exd5 {[%clk 0:01:15]} 21. Bd3 {[%clk 0:02:19]}  f5 {[%clk 0:01:10]} 22. Bxf5 {[%clk 0:02:19]} 1-0


[Site "https://www.chess.com"]

[Event "Titled Tuesday Blitz May 24 Late 2022"]
[White "Cabarkapa, Novak"]
[Black "Wachinger, Guenther"]
[WhiteFideId "943746"]
[BlackFideId "4604261"]
[WhiteElo "2454"]
[BlackElo "2212"]
[Result "1-0"]
[Round "02"]
[TimeControl "180+1"]
[Date "2022.05.25"]
[WhiteClock "0:00:12"]
[BlackClock "0:00:09"]

1. h4 {[%clk 0:03:00]}  e5 {[%clk 0:02:43]} 2. h5 {[%clk 0:03:00]}  d5 {[%clk 0:02:41]} 3. c3 {[%clk 0:03:00]}  Nc6 {[%clk 0:02:40]} 4. d4 {[%clk 0:03:00]}  e4 {[%clk 0:02:39]} 5. Bf4 {[%clk 0:03:00]}  Bd6 {[%clk 0:02:37]} 6. Qc1 {[%clk 0:02:59]}  h6 {[%clk 0:02:28]} 7. Na3 {[%clk 0:02:54]}  a6 {[%clk 0:02:28]} 8. Nc2 {[%clk 0:02:54]}  Qf6 {[%clk 0:02:25]} 9. g3 {[%clk 0:02:49]}  Bg4 {[%clk 0:02:23]} 10. Bxd6 {[%clk 0:02:41]}  Qxd6 {[%clk 0:02:21]} 11. Ne3 {[%clk 0:02:41]}  Nf6 {[%clk 0:02:20]} 12. Nxg4 {[%clk 0:02:38]}  Nxg4 {[%clk 0:02:21]} 13. Rh4 {[%clk 0:02:39]}  f5 {[%clk 0:02:20]} 14. e3 {[%clk 0:02:31]}  O-O {[%clk 0:02:14]} 15. Nh3 {[%clk 0:02:30]}  Nd8 {[%clk 0:02:11]} 16. Be2 {[%clk 0:02:25]}  Nf6 {[%clk 0:01:55]} 17. Nf4 {[%clk 0:02:23]}  Ne6 {[%clk 0:01:55]} 18. Ng6 {[%clk 0:02:23]}  Rfe8 {[%clk 0:01:52]} 19. Qd2 {[%clk 0:02:22]}  Nf8 {[%clk 0:01:51]} 20. Nf4 {[%clk 0:02:19]}  Ne6 {[%clk 0:01:51]} 21. O-O-O {[%clk 0:02:18]}  a5 {[%clk 0:01:48]} 22. Kb1 {[%clk 0:02:17]}  c6 {[%clk 0:01:47]} 23. Rg1 {[%clk 0:02:16]}  b5 {[%clk 0:01:39]} 24. Ng6 {[%clk 0:02:16]}  b4 {[%clk 0:01:38]} 25. c4 {[%clk 0:02:15]}  dxc4 {[%clk 0:01:36]} 26. Bxc4 {[%clk 0:02:14]}  Nd5 {[%clk 0:01:37]} 27. g4 {[%clk 0:02:03]}  Ng5 {[%clk 0:01:35]} 28. gxf5 {[%clk 0:01:29]}  Nf3 {[%clk 0:01:34]} 29. Qd1 {[%clk 0:01:29]}  Nxh4 {[%clk 0:01:11]} 30. Nxh4 {[%clk 0:01:30]}  Kh7 {[%clk 0:00:56]} 31. Rg6 {[%clk 0:01:28]}  Nf6 {[%clk 0:00:53]} 32. Qg1 {[%clk 0:01:24]}  Ra7 {[%clk 0:00:52]} 33. Ng2 {[%clk 0:01:12]}  c5 {[%clk 0:00:47]} 34. Nf4 {[%clk 0:01:11]}  cxd4 {[%clk 0:00:47]} 35. Ne6 {[%clk 0:01:08]}  Rxe6 {[%clk 0:00:47]} 36. fxe6 {[%clk 0:01:07]}  Qe5 {[%clk 0:00:41]} 37. exd4 {[%clk 0:00:35]}  Qxh5 {[%clk 0:00:37]} 38. Rxf6 {[%clk 0:00:28]}  gxf6 {[%clk 0:00:28]} 39. d5 {[%clk 0:00:15]}  Qe5 {[%clk 0:00:22]} 40. f4 {[%clk 0:00:15]}  exf3 {[%clk 0:00:20]} 41. Qxa7+ {[%clk 0:00:13]}  Kg6 {[%clk 0:00:20]} 42. Qg1+ {[%clk 0:00:11]}  Kf5 {[%clk 0:00:13]} 43. Bd3+ {[%clk 0:00:10]}  Kf4 {[%clk 0:00:13]} 44. Qh2+ {[%clk 0:00:10]}  Ke3 {[%clk 0:00:12]} 45. Qxe5+ {[%clk 0:00:11]}  fxe5 {[%clk 0:00:13]} 46. Ba6 {[%clk 0:00:12]}  Kd2 {[%clk 0:00:09]} 47. e7 {[%clk 0:00:12]} 1-0


[Site "https://www.chess.com"]

[Event "Titled Tuesday Blitz May 24 Late 2022"]
[White "Djokic, Mihailo"]
[Black "Martinez Alcantara, Jose Eduardo"]
[WhiteFideId "976440"]
[BlackFideId "3805662"]
[WhiteElo "2202"]
[BlackElo "2690"]
[Result "0-1"]
[Round "02"]
[TimeControl "180+1"]
[Date "2022.05.24"]
[WhiteClock "0:00:01"]
[BlackClock "0:00:09"]

1. e4 {[%clk 0:03:00]}  c5 {[%clk 0:02:59]} 2. Nf3 {[%clk 0:03:00]}  d6 {[%clk 0:03:00]} 3. d4 {[%clk 0:03:01]}  cxd4 {[%clk 0:03:01]} 4. Nxd4 {[%clk 0:03:02]}  Nf6 {[%clk 0:03:02]} 5. Nc3 {[%clk 0:03:02]}  a6 {[%clk 0:03:02]} 6. Rg1 {[%clk 0:03:03]}  h5 {[%clk 0:03:01]} 7. h3 {[%clk 0:03:03]}  h4 {[%clk 0:02:54]} 8. Bg5 {[%clk 0:03:01]}  e6 {[%clk 0:02:51]} 9. Nf3 {[%clk 0:02:54]}  Qb6 {[%clk 0:02:47]} 10. Rb1 {[%clk 0:02:45]}  Be7 {[%clk 0:02:47]} 11. Bxh4 {[%clk 0:02:42]}  Nbd7 {[%clk 0:02:34]} 12. Bg3 {[%clk 0:02:41]}  Qc7 {[%clk 0:02:26]} 13. Bd3 {[%clk 0:02:27]}  b5 {[%clk 0:02:25]} 14. a3 {[%clk 0:02:26]}  Bb7 {[%clk 0:02:25]} 15. Qe2 {[%clk 0:02:25]}  Rc8 {[%clk 0:02:21]} 16. Rd1 {[%clk 0:02:21]}  Qa5 {[%clk 0:02:21]} 17. Kf1 {[%clk 0:02:15]}  e5 {[%clk 0:02:17]} 18. Nd2 {[%clk 0:02:08]}  Qb6 {[%clk 0:02:06]} 19. f3 {[%clk 0:02:04]}  Nh5 {[%clk 0:02:01]} 20. Bf2 {[%clk 0:02:02]}  Qc7 {[%clk 0:02:02]} 21. Nb3 {[%clk 0:01:58]}  Nf4 {[%clk 0:02:02]} 22. Qd2 {[%clk 0:01:57]}  Nf8 {[%clk 0:01:57]} 23. h4 {[%clk 0:01:28]}  N8e6 {[%clk 0:01:51]} 24. Rh1 {[%clk 0:01:24]}  g5 {[%clk 0:01:47]} 25. g3 {[%clk 0:01:22]}  Nxd3 {[%clk 0:01:44]} 26. Qxd3 {[%clk 0:01:16]}  gxh4 {[%clk 0:01:43]} 27. Nd5 {[%clk 0:01:13]}  Qxc2 {[%clk 0:01:31]} 28. Nxe7 {[%clk 0:01:08]}  Qxd3+ {[%clk 0:01:31]} 29. Rxd3 {[%clk 0:01:08]}  Kxe7 {[%clk 0:01:32]} 30. gxh4 {[%clk 0:00:58]}  f5 {[%clk 0:01:21]} 31. exf5 {[%clk 0:00:40]}  Nf4 {[%clk 0:01:21]} 32. Rd2 {[%clk 0:00:33]}  Bd5 {[%clk 0:01:14]} 33. Na5 {[%clk 0:00:24]}  Rc1+ {[%clk 0:01:08]} 34. Be1 {[%clk 0:00:23]}  Bxf3 {[%clk 0:01:00]} 35. Rhh2 {[%clk 0:00:18]}  Rg8 {[%clk 0:00:53]} 36. Nb3 {[%clk 0:00:16]}  Rc4 {[%clk 0:00:46]} 37. h5 {[%clk 0:00:15]}  Nxh5 {[%clk 0:00:30]} 38. Bh4+ {[%clk 0:00:13]}  Kd7 {[%clk 0:00:31]} 39. Rc2 {[%clk 0:00:08]}  Bd5 {[%clk 0:00:26]} 40. Nc1 {[%clk 0:00:05]}  Rf4+ {[%clk 0:00:23]} 41. Rcf2 {[%clk 0:00:05]}  Be4 {[%clk 0:00:16]} 42. Ne2 {[%clk 0:00:03]}  Rxf5 {[%clk 0:00:16]} 43. Rxf5 {[%clk 0:00:02]}  Bxf5 {[%clk 0:00:17]} 44. Bf2 {[%clk 0:00:03]}  Nf6 {[%clk 0:00:16]} 45. Rh6 {[%clk 0:00:03]}  Rg6 {[%clk 0:00:17]} 46. Rh8 {[%clk 0:00:03]}  Bd3 {[%clk 0:00:17]} 47. Ke1 {[%clk 0:00:02]}  Ne4 {[%clk 0:00:15]} 48. Ra8 {[%clk 0:00:02]}  Bxe2 {[%clk 0:00:15]} 49. Ra7+ {[%clk 0:00:01]}  Ke6 {[%clk 0:00:15]} 50. Kxe2 {[%clk 0:00:02]}  Rg2 {[%clk 0:00:16]} 51. Kf3 {[%clk 0:00:02]}  Rxf2+ {[%clk 0:00:17]} 52. Kxe4 {[%clk 0:00:03]}  Rxb2 {[%clk 0:00:17]} 53. Rxa6 {[%clk 0:00:03]}  Rb3 {[%clk 0:00:13]} 54. Rb6 {[%clk 0:00:03]}  Rh3 {[%clk 0:00:08]} 55. Ra6 {[%clk 0:00:01]}  Rh4+ {[%clk 0:00:08]} 56. Kd3 {[%clk 0:00:01]}  Ra4 {[%clk 0:00:08]} 57. Rb6 {[%clk 0:00:01]}  Rxa3+ {[%clk 0:00:09]} 0-1


[Site "https://www.chess.com"]

[Event "Titled Tuesday Blitz May 24 Late 2022"]
[White "Fawzy, Adham"]
[Black "Meunier-Pion, Jean"]
[WhiteFideId "10613129"]
[BlackFideId "20685327"]
[WhiteElo "2546"]
[BlackElo "2124"]
[Result "1-0"]
[Round "02"]
[TimeControl "180+1"]
[Date "2022.05.25"]
[WhiteClock "0:02:07"]
[BlackClock "0:00:14"]

1. e4 {[%clk 0:03:00]}  c5 {[%clk 0:02:59]} 2. c4 {[%clk 0:03:01]}  Nc6 {[%clk 0:02:58]} 3. Nc3 {[%clk 0:03:02]}  g6 {[%clk 0:02:57]} 4. g3 {[%clk 0:03:02]}  Bg7 {[%clk 0:02:58]} 5. Bg2 {[%clk 0:03:03]}  e6 {[%clk 0:02:56]} 6. Nge2 {[%clk 0:03:00]}  Nge7 {[%clk 0:02:55]} 7. d3 {[%clk 0:03:00]}  O-O {[%clk 0:02:55]} 8. O-O {[%clk 0:03:01]}  Nd4 {[%clk 0:02:49]} 9. Be3 {[%clk 0:03:01]}  Nec6 {[%clk 0:02:48]} 10. Qd2 {[%clk 0:03:01]}  Nxe2+ {[%clk 0:02:40]} 11. Nxe2 {[%clk 0:03:01]}  Nd4 {[%clk 0:02:40]} 12. Nxd4 {[%clk 0:03:01]}  cxd4 {[%clk 0:02:39]} 13. Bh6 {[%clk 0:03:02]}  d6 {[%clk 0:02:37]} 14. Bxg7 {[%clk 0:03:02]}  Kxg7 {[%clk 0:02:37]} 15. f4 {[%clk 0:03:02]}  f5 {[%clk 0:02:07]} 16. Rae1 {[%clk 0:02:59]}  Rb8 {[%clk 0:02:03]} 17. e5 {[%clk 0:02:59]}  b5 {[%clk 0:02:01]} 18. b3 {[%clk 0:02:57]}  Bb7 {[%clk 0:01:57]} 19. exd6 {[%clk 0:02:56]}  Qxd6 {[%clk 0:01:56]} 20. Re5 {[%clk 0:02:55]}  bxc4 {[%clk 0:01:55]} 21. dxc4 {[%clk 0:02:55]}  d3 {[%clk 0:01:41]} 22. Qc3 {[%clk 0:02:44]}  Kf7 {[%clk 0:01:34]} 23. Rd1 {[%clk 0:02:39]}  Rfd8 {[%clk 0:01:28]} 24. Re3 {[%clk 0:02:25]}  Bxg2 {[%clk 0:01:03]} 25. Kxg2 {[%clk 0:02:19]}  Qc6+ {[%clk 0:00:43]} 26. Kf2 {[%clk 0:02:12]}  h5 {[%clk 0:00:37]} 27. h4 {[%clk 0:02:11]}  Rb7 {[%clk 0:00:19]} 28. Rexd3 {[%clk 0:02:08]}  Rbd7 {[%clk 0:00:19]} 29. Rxd7+ {[%clk 0:02:04]}  Rxd7 {[%clk 0:00:20]} 30. Rxd7+ {[%clk 0:02:04]}  Qxd7 {[%clk 0:00:20]} 31. c5 {[%clk 0:02:05]}  Qd5 {[%clk 0:00:20]} 32. c6 {[%clk 0:02:04]}  Qh1 {[%clk 0:00:19]} 33. c7 {[%clk 0:02:03]}  Qh2+ {[%clk 0:00:19]} 34. Ke1 {[%clk 0:02:04]}  Qg1+ {[%clk 0:00:19]} 35. Kd2 {[%clk 0:02:04]}  Qf2+ {[%clk 0:00:19]} 36. Kc1 {[%clk 0:02:05]}  Qf1+ {[%clk 0:00:18]} 37. Kb2 {[%clk 0:02:05]}  Qe2+ {[%clk 0:00:18]} 38. Qc2 {[%clk 0:02:06]}  Qe3 {[%clk 0:00:14]} 39. c8=Q {[%clk 0:02:06]}  Qd4+ {[%clk 0:00:14]} 40. Q8c3 {[%clk 0:02:07]} 1-0


[Site "https://www.chess.com"]

[Event "Titled Tuesday Blitz May 24 Late 2022"]
[White "Francisco Guecamburu, Candela Be"]
[Black "Dreev, Aleksey"]
[WhiteFideId "160911"]
[BlackFideId "4100107"]
[WhiteElo "1847"]
[BlackElo "2625"]
[Result "0-1"]
[Round "02"]
[TimeControl "180+1"]
[Date "2022.05.25"]
[WhiteClock "0:01:24"]
[BlackClock "0:01:56"]

1. e4 {[%clk 0:03:00]}  c6 {[%clk 0:02:57]} 2. d4 {[%clk 0:03:01]}  d5 {[%clk 0:02:58]} 3. e5 {[%clk 0:03:01]}  c5 {[%clk 0:02:58]} 4. dxc5 {[%clk 0:03:01]}  e6 {[%clk 0:02:58]} 5. Nf3 {[%clk 0:03:01]}  Bxc5 {[%clk 0:02:57]} 6. a3 {[%clk 0:03:02]}  Qb6 {[%clk 0:02:50]} 7. Qe2 {[%clk 0:02:56]}  Bd7 {[%clk 0:02:45]} 8. b4 {[%clk 0:02:55]}  Be7 {[%clk 0:02:43]} 9. Be3 {[%clk 0:02:55]}  Qc7 {[%clk 0:02:43]} 10. Qd1 {[%clk 0:02:45]}  Nc6 {[%clk 0:02:42]} 11. Bf4 {[%clk 0:02:43]}  g5 {[%clk 0:02:37]} 12. Bg3 {[%clk 0:02:32]}  h5 {[%clk 0:02:36]} 13. h3 {[%clk 0:02:31]}  Nh6 {[%clk 0:02:34]} 14. Bd3 {[%clk 0:02:31]}  h4 {[%clk 0:02:30]} 15. Bh2 {[%clk 0:02:31]}  g4 {[%clk 0:02:31]} 16. hxg4 {[%clk 0:02:30]}  Nxg4 {[%clk 0:02:31]} 17. Qe2 {[%clk 0:02:25]}  Nxh2 {[%clk 0:02:08]} 18. Rxh2 {[%clk 0:02:26]}  f6 {[%clk 0:02:04]} 19. Bg6+ {[%clk 0:02:19]}  Kd8 {[%clk 0:02:03]} 20. Rxh4 {[%clk 0:01:53]}  Rxh4 {[%clk 0:02:01]} 21. Nxh4 {[%clk 0:01:54]}  Qxe5 {[%clk 0:01:59]} 22. Qxe5 {[%clk 0:01:48]}  Nxe5 {[%clk 0:01:59]} 23. Bd3 {[%clk 0:01:42]}  a5 {[%clk 0:01:58]} 24. Ng6 {[%clk 0:01:25]}  Nxg6 {[%clk 0:01:55]} 25. Bxg6 {[%clk 0:01:24]}  axb4 {[%clk 0:01:56]} 0-1


[Site "https://www.chess.com"]